[Event "Open Nuevo Centro. Jornada 1"]
[Site "Chess.com"]
[Date "2020.06.19"]
[Round "4"]
[White "Ferrero Sanchis, Enrique"]
[Black "Gracia Calvo, Andres"]
[Result "0-1"]
[WhiteElo "1510"]
[BlackElo "1837"]
[TimeControl "180+2"]
[EndTime "11:17:43 PDT"]
[Termination "Victoria de andresjaque21 por jaque mate"]

1. d4 {[%clk 0:03:01.9]} 1... d5 {[%clk 0:03:00.9]} 2. Bf4 {[%clk 0:03:01.9]}
2... c5 {[%clk 0:03:01]} 3. c3 {[%clk 0:03:02.4]} 3... Nc6 {[%clk 0:03:00.5]} 4.
Nf3 {[%clk 0:03:02.3]} 4... Qb6 {[%clk 0:03:01]} 5. Qc2 {[%clk 0:03:02.5]} 5...
cxd4 {[%clk 0:03:01.1]} 6. cxd4 {[%clk 0:03:01.8]} 6... Nxd4 {[%clk 0:03:00.1]}
7. Nxd4 {[%clk 0:03:02]} 7... Qxd4 {[%clk 0:03:00.4]} 8. e3 {[%clk 0:03:02.6]}
8... Qb4+ {[%clk 0:02:48.3]} 9. Nd2 {[%clk 0:03:02.7]} 9... Bd7 {[%clk
0:02:46.4]} 10. Bd3 {[%clk 0:03:02.9]} 10... Nf6 {[%clk 0:02:44]} 11. O-O {[%clk
0:03:02.5]} 11... e6 {[%clk 0:02:44.2]} 12. a3 {[%clk 0:03:00.9]} 12... Qb6
{[%clk 0:02:43.6]} 13. b4 {[%clk 0:02:59.4]} 13... Bd6 {[%clk 0:02:42.3]} 14.
Bg5 {[%clk 0:02:58.8]} 14... Be7 {[%clk 0:02:39.2]} 15. Rac1 {[%clk 0:02:54.8]}
15... Rc8 {[%clk 0:02:31.9]} 16. Qb2 {[%clk 0:02:53.9]} 16... O-O {[%clk
0:02:32.1]} 17. Bf4 {[%clk 0:02:49.9]} 17... Bd6 {[%clk 0:02:28.8]} 18. Bg5
{[%clk 0:02:46.1]} 18... Be7 {[%clk 0:02:28.8]} 19. Nf3 {[%clk 0:02:44.9]} 19...
h6 {[%clk 0:02:28.1]} 20. Bh4 {[%clk 0:02:44.6]} 20... Bb5 {[%clk 0:02:23.3]}
21. Bxb5 {[%clk 0:02:42.2]} 21... Qxb5 {[%clk 0:02:23.9]} 22. Rxc8 {[%clk
0:02:42.2]} 22... Rxc8 {[%clk 0:02:23.9]} 23. Rc1 {[%clk 0:02:42.1]} 23... Qd7
{[%clk 0:02:24.6]} 24. Ne5 {[%clk 0:02:38.6]} 24... Qd8 {[%clk 0:02:23]} 25. Ng4
{[%clk 0:02:30.8]} 25... Nxg4 {[%clk 0:02:16.1]} 26. Rxc8 {[%clk 0:02:28.3]}
26... Qxc8 {[%clk 0:02:10.2]} 27. Bxe7 {[%clk 0:02:28.7]} 27... Qc7 {[%clk
0:02:01.1]} 28. Bc5 {[%clk 0:02:21.1]} 28... b6 {[%clk 0:02:00.6]} 29. Bd4
{[%clk 0:02:20.2]} 29... e5 {[%clk 0:01:57.7]} 30. Bc3 {[%clk 0:02:18.2]} 30...
h5 {[%clk 0:01:42.1]} 31. h3 {[%clk 0:02:18.3]} 31... Nh6 {[%clk 0:01:39.5]} 32.
Bxe5 {[%clk 0:02:18.1]} 32... Qc4 {[%clk 0:01:38.7]} 33. Bxg7 {[%clk 0:02:15.3]}
33... Nf5 {[%clk 0:01:38.4]} 34. Bd4 {[%clk 0:02:12.8]} 34... Nxd4 {[%clk
0:01:33.9]} 35. Qxd4 {[%clk 0:02:11.2]} 35... Qc1+ {[%clk 0:01:33]} 36. Kh2
{[%clk 0:02:10.8]} 36... Qxa3 {[%clk 0:01:33.4]} 37. Qxd5 {[%clk 0:02:03.8]}
37... Qxb4 {[%clk 0:01:32.6]} 38. Qa8+ {[%clk 0:02:04.1]} 38... Kg7 {[%clk
0:01:32.5]} 39. Qxa7 {[%clk 0:02:04.3]} 39... b5 {[%clk 0:01:31.7]} 40. Kg3
{[%clk 0:02:00.4]} 40... Qc4 {[%clk 0:01:31.4]} 41. Kf3 {[%clk 0:01:54.2]} 41...
b4 {[%clk 0:01:31.9]} 42. e4 {[%clk 0:01:39]} 42... b3 {[%clk 0:01:29.8]} 43.
Ke3 {[%clk 0:01:39.2]} 43... b2 {[%clk 0:01:27.2]} 44. Qb8 {[%clk 0:01:19.8]}
44... Qc1+ {[%clk 0:01:26.9]} 45. Kf3 {[%clk 0:01:20.1]} 45... b1=Q {[%clk
0:01:27.9]} 46. Qe5+ {[%clk 0:01:19.3]} 46... Kf8 {[%clk 0:01:13]} 47. Qd6+
{[%clk 0:01:15.9]} 47... Ke8 {[%clk 0:01:09.2]} 48. Qe5+ {[%clk 0:01:12.2]}
48... Kd8 {[%clk 0:01:08.6]} 49. Qd6+ {[%clk 0:01:09.9]} 49... Kc8 {[%clk
0:01:09]} 50. Qf8+ {[%clk 0:01:09.9]} 50... Kb7 {[%clk 0:01:07.9]} 51. Qxf7+
{[%clk 0:01:10.5]} 51... Qc7 {[%clk 0:01:07.8]} 52. Qd5+ {[%clk 0:01:10]} 52...
Kb8 {[%clk 0:00:59.6]} 53. Qg8+ {[%clk 0:01:05.2]} 53... Ka7 {[%clk 0:00:56.5]}
54. Qd5 {[%clk 0:01:01.1]} 54... Qc3+ {[%clk 0:00:39.1]} 55. Kf4 {[%clk
0:00:57.6]} 55... Qf6+ {[%clk 0:00:38.8]} 56. Kg3 {[%clk 0:00:55.5]} 56... Qg5+
{[%clk 0:00:33]} 57. Kh2 {[%clk 0:00:54.4]} 57... Qxd5 {[%clk 0:00:33]} 58. exd5
{[%clk 0:00:51.4]} 58... Qd1 {[%clk 0:00:33.4]} 59. Kg3 {[%clk 0:00:50.9]} 59...
Qxd5 {[%clk 0:00:34.2]} 60. f3 {[%clk 0:00:50.5]} 60... Kb7 {[%clk 0:00:34.7]}
61. Kh4 {[%clk 0:00:51]} 61... Kc7 {[%clk 0:00:35.4]} 62. f4 {[%clk 0:00:51.9]}
62... Kd7 {[%clk 0:00:35.8]} 63. g4 {[%clk 0:00:52.7]} 63... hxg4 {[%clk
0:00:36.5]} 64. hxg4 {[%clk 0:00:53.1]} 64... Ke7 {[%clk 0:00:38.4]} 65. f5
{[%clk 0:00:53.1]} 65... Kf7 {[%clk 0:00:38.8]} 66. Kg5 {[%clk 0:00:52.8]} 66...
Kg7 {[%clk 0:00:38.1]} 67. Kh5 {[%clk 0:00:52.5]} 67... Qg2 {[%clk 0:00:35.5]}
68. g5 {[%clk 0:00:49.7]} 68... Qh3# {[%clk 0:00:34.6]} 0

[Event "Open Nuevo Centro. Jornada 1"]
[Site "Chess.com"]
[Date "2020.06.19"]
[Round "4"]
[White "Vorozbits Moisejevs, Daniels"]
[Black "Ursariu, Nikolas Victor"]
[Result "0-1"]
[WhiteElo "921"]
[BlackElo "1277"]
[TimeControl "180+2"]
[EndTime "11:18:45 PDT"]
[Termination "Victoria de NikolasVictor por jaque mate"]

1. e4 {[%clk 0:00:36.8]} 1... e5 {[%clk 0:02:57.7]} 2. Nf3 {[%clk 0:00:37.4]}
2... Nc6 {[%clk 0:02:55.7]} 3. Bc4 {[%clk 0:00:38.1]} 3... Bc5 {[%clk
0:02:55.3]} 4. O-O {[%clk 0:00:36.1]} 4... Nf6 {[%clk 0:02:54.1]} 5. d3 {[%clk
0:00:37.3]} 5... O-O {[%clk 0:02:53.7]} 6. Nc3 {[%clk 0:00:37.5]} 6... d6 {[%clk
0:02:52.8]} 7. Be3 {[%clk 0:00:38.9]} 7... Bb6 {[%clk 0:02:53.3]} 8. Bxb6 {[%clk
0:00:40.4]} 8... axb6 {[%clk 0:02:54]} 9. Bd5 {[%clk 0:00:41.6]} 9... Nxd5
{[%clk 0:02:52.3]} 10. Nxd5 {[%clk 0:00:42.7]} 10... Ne7 {[%clk 0:02:48]} 11.
Nxe7+ {[%clk 0:00:35.4]} 11... Qxe7 {[%clk 0:02:47.2]} 12. Qd2 {[%clk
0:00:36.7]} 12... Be6 {[%clk 0:02:43.1]} 13. Qe3 {[%clk 0:00:38.4]} 13... Rxa2
{[%clk 0:02:40.5]} 14. Rxa2 {[%clk 0:00:39]} 14... Bxa2 {[%clk 0:02:41.2]} 15.
Ra1 {[%clk 0:00:40.7]} 15... Be6 {[%clk 0:02:40.3]} 16. h3 {[%clk 0:00:41.1]}
16... Rd8 {[%clk 0:02:29.8]} 17. Ra7 {[%clk 0:00:42.3]} 17... Rb8 {[%clk
0:02:27.4]} 18. b3 {[%clk 0:00:37.6]} 18... Qd7 {[%clk 0:02:22.7]} 19. Ra1
{[%clk 0:00:37.8]} 19... Qc6 {[%clk 0:02:18.9]} 20. c4 {[%clk 0:00:38.5]} 20...
b5 {[%clk 0:02:15.8]} 21. Rc1 {[%clk 0:00:35]} 21... bxc4 {[%clk 0:02:15.2]} 22.
bxc4 {[%clk 0:00:34.1]} 22... Qa4 {[%clk 0:02:08]} 23. Ng5 {[%clk 0:00:34.8]}
23... Qd7 {[%clk 0:01:51.9]} 24. Nxe6 {[%clk 0:00:35.4]} 24... Qxe6 {[%clk
0:01:52.1]} 25. f4 {[%clk 0:00:33.9]} 25... exf4 {[%clk 0:01:51.2]} 26. Qxf4
{[%clk 0:00:34.7]} 26... Qe5 {[%clk 0:01:49]} 27. Qxe5 {[%clk 0:00:34.7]} 27...
dxe5 {[%clk 0:01:50.9]} 28. Kf2 {[%clk 0:00:34.5]} 28... Rd8 {[%clk 0:01:51.7]}
29. Ke3 {[%clk 0:00:35.5]} 29... Kf8 {[%clk 0:01:50.8]} 30. Rb1 {[%clk
0:00:35.8]} 30... b6 {[%clk 0:01:49.2]} 31. Ra1 {[%clk 0:00:35.9]} 31... Ke7
{[%clk 0:01:47.5]} 32. Ra7 {[%clk 0:00:36.8]} 32... Rd7 {[%clk 0:01:47.1]} 33.
Ra8 {[%clk 0:00:36.9]} 33... Rd8 {[%clk 0:01:45.2]} 34. Ra7 {[%clk 0:00:29.7]}
34... Kd7 {[%clk 0:01:44.1]} 35. g4 {[%clk 0:00:29]} 35... Kc6 {[%clk
0:01:41.3]} 36. Ra4 {[%clk 0:00:22.7]} 36... b5 {[%clk 0:01:37.8]} 37. cxb5+
{[%clk 0:00:21.4]} 37... Kxb5 {[%clk 0:01:39.7]} 38. Ra7 {[%clk 0:00:22.2]}
38... Kb6 {[%clk 0:01:38.8]} 39. Ra1 {[%clk 0:00:22.6]} 39... c5 {[%clk
0:01:26.8]} 40. Rb1+ {[%clk 0:00:23.7]} 40... Kc7 {[%clk 0:01:22.5]} 41. Rb5
{[%clk 0:00:24.8]} 41... Kc6 {[%clk 0:01:22.5]} 42. Rb1 {[%clk 0:00:24.9]} 42...
g5 {[%clk 0:01:12.9]} 43. Rf1 {[%clk 0:00:24.5]} 43... Rd7 {[%clk 0:01:10.9]}
44. Rb1 {[%clk 0:00:22.9]} 44... Rd6 {[%clk 0:01:07.1]} 45. Rb8 {[%clk
0:00:22.5]} 45... Rd7 {[%clk 0:01:05.2]} 46. Rh8 {[%clk 0:00:22.9]} 46... f6
{[%clk 0:01:05.7]} 47. Rf8 {[%clk 0:00:22.3]} 47... Rd6 {[%clk 0:00:54.6]} 48.
Rf7 {[%clk 0:00:23]} 48... h6 {[%clk 0:00:54.9]} 49. Rh7 {[%clk 0:00:23.1]}
49... Kb5 {[%clk 0:00:52.3]} 50. Rxh6 {[%clk 0:00:23.2]} 50... c4 {[%clk
0:00:52.6]} 51. dxc4+ {[%clk 0:00:23.8]} 51... Kxc4 {[%clk 0:00:54.4]} 52. Rh8
{[%clk 0:00:22.9]} 52... Rd3+ {[%clk 0:00:54]} 53. Kf2 {[%clk 0:00:23.9]} 53...
Rd2+ {[%clk 0:00:53.2]} 54. Ke1 {[%clk 0:00:24]} 54... Rd3 {[%clk 0:00:52.7]}
55. Rc8+ {[%clk 0:00:24.6]} 55... Kd4 {[%clk 0:00:50.6]} 56. Rf8 {[%clk
0:00:23.9]} 56... Kxe4 {[%clk 0:00:47.2]} 57. Rxf6 {[%clk 0:00:24.3]} 57... Rf3
{[%clk 0:00:46.1]} 58. Rb6 {[%clk 0:00:16.1]} 58... Rxh3 {[%clk 0:00:41.8]} 59.
Rb4+ {[%clk 0:00:16.6]} 59... Kd5 {[%clk 0:00:42.6]} 60. Rb5+ {[%clk 0:00:17.2]}
60... Kd4 {[%clk 0:00:39.9]} 61. Rb4+ {[%clk 0:00:17.9]} 61... Kc5 {[%clk
0:00:40.3]} 62. Re4 {[%clk 0:00:19]} 62... Kd5 {[%clk 0:00:38]} 63. Rb4 {[%clk
0:00:19.8]} 63... Re3+ {[%clk 0:00:35.7]} 64. Kd2 {[%clk 0:00:20.7]} 64... Re4
{[%clk 0:00:34.6]} 65. Rb5+ {[%clk 0:00:21.6]} 65... Kc4 {[%clk 0:00:31.6]} 66.
Rb8 {[%clk 0:00:19.5]} 66... Rxg4 {[%clk 0:00:31.8]} 67. Rc8+ {[%clk 0:00:20.3]}
67... Kd5 {[%clk 0:00:30.5]} 68. Rd8+ {[%clk 0:00:21]} 68... Ke4 {[%clk
0:00:31.2]} 69. Rb8 {[%clk 0:00:19.8]} 69... Rg2+ {[%clk 0:00:31.8]} 70. Ke1
{[%clk 0:00:20.1]} 70... g4 {[%clk 0:00:27.6]} 71. Rb4+ {[%clk 0:00:20.5]} 71...
Kf5 {[%clk 0:00:28.5]} 72. Rb5 {[%clk 0:00:19.6]} 72... g3 {[%clk 0:00:29]} 73.
Kf1 {[%clk 0:00:20.7]} 73... Rf2+ {[%clk 0:00:27.7]} 74. Kg1 {[%clk 0:00:21.4]}
74... Kf4 {[%clk 0:00:22.3]} 75. Rb4+ {[%clk 0:00:21.1]} 75... e4 {[%clk
0:00:24.2]} 76. Rb3 {[%clk 0:00:21.8]} 76... e3 {[%clk 0:00:22.7]} 77. Rb4+
{[%clk 0:00:22.4]} 77... Kf3 {[%clk 0:00:23.8]} 78. Rb8 {[%clk 0:00:21.5]} 78...
e2 {[%clk 0:00:24.3]} 79. Re8 {[%clk 0:00:20.8]} 79... Rg2+ {[%clk 0:00:22.7]}
80. Kh1 {[%clk 0:00:21.1]} 80... Rf2 {[%clk 0:00:21]} 81. Kg1 {[%clk 0:00:21.5]}
81... Rf1# {[%clk 0:00:21.6]} 0

[Event "Open Nuevo Centro. Jornada 1"]
[Site "Chess.com"]
[Date "2020.06.19"]
[Round "5"]
[White "Campos Gambuti, Luis Mar�a"]
[Black "Granero Roca, Antonio"]
[Result "1/2-1/2"]
[WhiteElo "2330"]
[BlackElo "2521"]
[TimeControl "180+2"]
[EndTime "11:19:47 PDT"]
[Termination "Partida en tablas por mutuo acuerdo"]

1. d4 {[%clk 0:03:01.9]} 1... Nf6 {[%clk 0:02:59.8]} 2. Nf3 {[%clk 0:03:03.1]}
2... d5 {[%clk 0:03:00.3]} 3. c4 {[%clk 0:03:04.2]} 3... c6 {[%clk 0:03:01.2]}
4. cxd5 {[%clk 0:03:05.7]} 4... cxd5 {[%clk 0:03:02]} 5. Nc3 {[%clk 0:03:07.3]}
5... Nc6 {[%clk 0:03:02.7]} 6. Bf4 {[%clk 0:03:08.7]} 6... e6 {[%clk 0:03:00.8]}
7. Rc1 {[%clk 0:03:08.2]} 7... Bd6 {[%clk 0:03:00.6]} 8. Bxd6 {[%clk 0:03:09.6]}
8... Qxd6 {[%clk 0:03:00.8]} 9. e3 {[%clk 0:03:11.2]} 9... O-O {[%clk
0:03:00.6]} 10. Bd3 {[%clk 0:03:12.6]} 10... Bd7 {[%clk 0:03:01.3]} 11. O-O
{[%clk 0:03:14]} 11... Rac8 {[%clk 0:03:01.8]} 1/2-1

[Event "Open Nuevo Centro. Jornada 1"]
[Site "Chess.com"]
[Date "2020.06.19"]
[Round "5"]
[White "Amor�s P�rez, Manuel David"]
[Black "Gil Lopez, Alejandro"]
[Result "0-1"]
[WhiteElo "1645"]
[BlackElo "2039"]
[TimeControl "180+2"]
[EndTime "11:20:49 PDT"]
[Termination "Victoria de AglVal0313 por abandono"]

1. e4 {[%clk 0:03:01.9]} 1... c5 {[%clk 0:03:01.4]} 2. Nf3 {[%clk 0:03:02.5]}
2... g6 {[%clk 0:03:02.5]} 3. d4 {[%clk 0:03:03.8]} 3... cxd4 {[%clk 0:03:03]}
4. Nxd4 {[%clk 0:03:05.3]} 4... Bg7 {[%clk 0:03:04.2]} 5. Nc3 {[%clk 0:03:06.8]}
5... Nc6 {[%clk 0:03:04.6]} 6. Nxc6 {[%clk 0:03:07.8]} 6... bxc6 {[%clk
0:03:04.9]} 7. Bd2 {[%clk 0:03:09.3]} 7... d6 {[%clk 0:03:04.7]} 8. Bd3 {[%clk
0:03:08.2]} 8... Nf6 {[%clk 0:03:05.9]} 9. O-O {[%clk 0:03:09.3]} 9... O-O
{[%clk 0:03:04.8]} 10. Re1 {[%clk 0:03:10.2]} 10... c5 {[%clk 0:03:06]} 11. e5
{[%clk 0:03:11.5]} 11... dxe5 {[%clk 0:03:06.9]} 12. Rxe5 {[%clk 0:03:12]} 12...
Ng4 {[%clk 0:02:57.1]} 13. Re1 {[%clk 0:03:02.5]} 13... Qd6 {[%clk 0:02:52.6]}
14. g3 {[%clk 0:03:02.8]} 14... Bd4 {[%clk 0:02:51.1]} 15. Be3 {[%clk
0:02:58.3]} 15... f5 {[%clk 0:02:44.3]} 16. Bxd4 {[%clk 0:02:57.6]} 16... Qxd4
{[%clk 0:02:45]} 17. Ne2 {[%clk 0:02:58.1]} 17... Qxf2+ {[%clk 0:02:44.9]} 0

[Event "Open Nuevo Centro. Jornada 1"]
[Site "Chess.com"]
[Date "2020.06.19"]
[Round "5"]
[White "Gracia Calvo, Andres"]
[Black "Rodriguez, Mathias"]
[Result "1-0"]
[WhiteElo "1849"]
[BlackElo "2000"]
[TimeControl "180+2"]
[EndTime "11:21:12 PDT"]
[Termination "Victoria de andresjaque21 por jaque mate"]

1. d4 {[%clk 0:03:01]} 1... d5 {[%clk 0:02:59.5]} 2. Nf3 {[%clk 0:03:01.9]} 2...
e6 {[%clk 0:02:59.2]} 3. Bf4 {[%clk 0:03:03.3]} 3... Nf6 {[%clk 0:03:00.1]} 4.
e3 {[%clk 0:03:04.6]} 4... Be7 {[%clk 0:03:00]} 5. Bd3 {[%clk 0:03:05.4]} 5...
O-O {[%clk 0:02:59.9]} 6. Nbd2 {[%clk 0:03:06.2]} 6... b6 {[%clk 0:02:58.7]} 7.
Ne5 {[%clk 0:03:06.8]} 7... Bb7 {[%clk 0:02:58.5]} 8. Qf3 {[%clk 0:03:08.1]}
8... Nbd7 {[%clk 0:02:53.2]} 9. g4 {[%clk 0:03:08.3]} 9... c5 {[%clk 0:02:48.1]}
10. c3 {[%clk 0:03:08.2]} 10... c4 {[%clk 0:02:45.5]} 11. Bc2 {[%clk 0:03:08.5]}
11... Nxe5 {[%clk 0:02:45]} 12. dxe5 {[%clk 0:03:05]} 12... Nd7 {[%clk
0:02:42.7]} 13. Qh3 {[%clk 0:02:57.6]} 13... h6 {[%clk 0:02:38.7]} 14. Nf3
{[%clk 0:02:48.5]} 14... Nc5 {[%clk 0:02:34.6]} 15. g5 {[%clk 0:02:41.9]} 15...
hxg5 {[%clk 0:02:29.4]} 16. Qh7# {[%clk 0:02:39.4]} 1

[Event "Open Nuevo Centro. Jornada 1"]
[Site "Chess.com"]
[Date "2020.06.19"]
[Round "5"]
[White "Gutierrez Lacambra, Jose Antonio"]
[Black "Fitzpatrick Dimas  , Andrew "]
[Result "1-0"]
[WhiteElo "1256"]
[BlackElo "1118"]
[TimeControl "180+2"]
[EndTime "11:21:55 PDT"]
[Termination "Victoria de sygm2012 por abandono"]

1. c4 {[%clk 0:03:01.7]} 1... e5 {[%clk 0:02:58.9]} 2. g3 {[%clk 0:03:02.8]}
2... Nc6 {[%clk 0:02:59.3]} 3. Bg2 {[%clk 0:03:04.1]} 3... Nf6 {[%clk
0:02:59.5]} 4. Nc3 {[%clk 0:03:03.6]} 4... Bb4 {[%clk 0:02:56.7]} 5. Nf3 {[%clk
0:02:55.8]} 5... Bxc3 {[%clk 0:02:56.8]} 6. bxc3 {[%clk 0:02:56.7]} 6... O-O
{[%clk 0:02:56.9]} 7. O-O {[%clk 0:02:58]} 7... d6 {[%clk 0:02:57.3]} 8. d3
{[%clk 0:02:59]} 8... Bg4 {[%clk 0:02:57.4]} 9. Bg5 {[%clk 0:02:59]} 9... h6
{[%clk 0:02:56.5]} 10. Be3 {[%clk 0:02:58.3]} 10... d5 {[%clk 0:02:55.2]} 11.
cxd5 {[%clk 0:02:59.1]} 11... Qxd5 {[%clk 0:02:54.4]} 12. Ne1 {[%clk 0:02:59]}
12... Qd6 {[%clk 0:02:48.8]} 13. Qb3 {[%clk 0:02:45.7]} 13... b6 {[%clk
0:02:43.1]} 14. Nf3 {[%clk 0:02:45.8]} 14... Be6 {[%clk 0:02:41.9]} 15. c4
{[%clk 0:02:45.7]} 15... a6 {[%clk 0:02:39.5]} 16. Qc3 {[%clk 0:02:23]} 16... b5
{[%clk 0:02:34.5]} 17. cxb5 {[%clk 0:02:22.3]} 17... axb5 {[%clk 0:02:34.7]} 18.
Rfc1 {[%clk 0:02:21.5]} 18... Ra6 {[%clk 0:02:31.2]} 19. Bc5 {[%clk 0:02:21.2]}
1

[Event "Open Nuevo Centro. Jornada 1"]
[Site "Chess.com"]
[Date "2020.06.19"]
[Round "5"]
[White "Donate Moreno, Silvia"]
[Black "Aymerich Rosell, Pablo"]
[Result "0-1"]
[WhiteElo "1777"]
[BlackElo "2018"]
[TimeControl "180+2"]
[EndTime "11:22:00 PDT"]
[Termination "Victoria de jasikevic por abandono"]

1. e4 {[%clk 0:03:01.9]} 1... c5 {[%clk 0:02:54.2]} 2. Nf3 {[%clk 0:03:01.1]}
2... Nc6 {[%clk 0:02:52.7]} 3. d4 {[%clk 0:02:51.3]} 3... cxd4 {[%clk
0:02:52.1]} 4. Nxd4 {[%clk 0:02:53.2]} 4... Nf6 {[%clk 0:02:50.8]} 5. Nc3 {[%clk
0:02:50.9]} 5... e5 {[%clk 0:02:50.8]} 6. Nb3 {[%clk 0:02:49.2]} 6... Bb4 {[%clk
0:02:46.2]} 7. f3 {[%clk 0:02:37.2]} 7... d5 {[%clk 0:02:38.8]} 8. exd5 {[%clk
0:02:27.4]} 8... Nxd5 {[%clk 0:02:34.5]} 9. Bd2 {[%clk 0:02:27.3]} 9... Nxc3
{[%clk 0:01:52.6]} 10. bxc3 {[%clk 0:02:26.9]} 10... Be7 {[%clk 0:01:45.9]} 11.
Bb5 {[%clk 0:02:23.8]} 11... O-O {[%clk 0:01:43.7]} 12. O-O {[%clk 0:02:23.2]}
12... Qb6+ {[%clk 0:01:42.8]} 0

[Event "Open Nuevo Centro. Jornada 1"]
[Site "Chess.com"]
[Date "2020.06.19"]
[Round "5"]
[White "Rabbani Perez, Ayoub "]
[Black "Vorozbits Moisejevs, Daniels"]
[Result "0-1"]
[WhiteElo "239"]
[BlackElo "921"]
[TimeControl "180+2"]
[EndTime "11:22:11 PDT"]
[Termination "Victoria de UgnadaKnukes por jaque mate"]

1. g4 {[%clk 0:03:01.9]} 1... e5 {[%clk 0:03:01.9]} 2. f3 {[%clk 0:03:01.5]}
2... Nf6 {[%clk 0:03:00.9]} 3. g5 {[%clk 0:02:59.4]} 3... Nd5 {[%clk 0:03:00.1]}
4. Nh3 {[%clk 0:02:56.6]} 4... Be7 {[%clk 0:02:59.5]} 5. Nf2 {[%clk 0:02:55.8]}
5... Bxg5 {[%clk 0:02:59.2]} 6. f4 {[%clk 0:02:53.7]} 6... Bh4 {[%clk 0:02:59]}
7. fxe5 {[%clk 0:02:53.8]} 7... Bxf2+ {[%clk 0:02:59.4]} 8. Kxf2 {[%clk
0:02:52]} 8... Qh4+ {[%clk 0:03:00.4]} 9. Kg1 {[%clk 0:02:47.2]} 9... Qg4+
{[%clk 0:02:55]} 10. Bg2 {[%clk 0:02:46.1]} 10... Nf4 {[%clk 0:02:53.9]} 11. Kf2
{[%clk 0:02:44]} 11... Qxg2+ {[%clk 0:02:53.1]} 12. Ke3 {[%clk 0:02:42.4]} 12...
Qg4 {[%clk 0:02:51.3]} 13. Kd4 {[%clk 0:02:36]} 13... O-O {[%clk 0:02:48.1]} 14.
e6 {[%clk 0:02:34.4]} 14... dxe6 {[%clk 0:02:47.1]} 15. Re1 {[%clk 0:02:31.3]}
15... Ng2+ {[%clk 0:02:42.9]} 16. Kd3 {[%clk 0:02:28]} 16... Rd8+ {[%clk
0:02:42.3]} 17. Kc3 {[%clk 0:02:20.5]} 17... Qd4+ {[%clk 0:02:38.5]} 18. Kb3
{[%clk 0:02:16.8]} 18... e5 {[%clk 0:02:35.1]} 19. h4 {[%clk 0:02:15.1]} 19...
Be6+ {[%clk 0:02:34.2]} 20. Ka3 {[%clk 0:02:12.6]} 20... Rd5 {[%clk 0:02:33.7]}
21. e4 {[%clk 0:02:04.4]} 21... Ra5# {[%clk 0:02:29.3]} 0

[Event "Open Nuevo Centro. Jornada 1"]
[Site "Chess.com"]
[Date "2020.06.19"]
[Round "5"]
[White "Hern�ndez Tom�s, Efr�n"]
[Black "Pitarch Soriano, Pablo"]
[Result "1-0"]
[WhiteElo "940"]
[BlackElo "1059"]
[TimeControl "180+2"]
[EndTime "11:22:37 PDT"]
[Termination "Victoria de EfrenHT10 por jaque mate"]

1. e4 {[%clk 0:03:01.9]} 1... e5 {[%clk 0:03:00.8]} 2. Nf3 {[%clk 0:03:02.1]}
2... Nc6 {[%clk 0:03:01.2]} 3. Bc4 {[%clk 0:03:02.3]} 3... Nf6 {[%clk
0:03:02.3]} 4. Ng5 {[%clk 0:03:00.4]} 4... d5 {[%clk 0:03:02]} 5. exd5 {[%clk
0:02:58.8]} 5... Nxd5 {[%clk 0:03:02.8]} 6. Bxd5 {[%clk 0:02:59.2]} 6... Qxg5
{[%clk 0:03:01.3]} 7. Qf3 {[%clk 0:02:56]} 7... Qf6 {[%clk 0:02:51.3]} 8. Qxf6
{[%clk 0:02:54.5]} 8... gxf6 {[%clk 0:02:51.5]} 9. O-O {[%clk 0:02:55.8]} 9...
Bd7 {[%clk 0:02:50.8]} 10. Bxc6 {[%clk 0:02:55.3]} 10... Bxc6 {[%clk 0:02:51.7]}
11. Nc3 {[%clk 0:02:56.7]} 11... O-O-O {[%clk 0:02:52.1]} 12. d3 {[%clk
0:02:56.2]} 12... Rg8 {[%clk 0:02:52.7]} 13. g3 {[%clk 0:02:55.2]} 13... Bc5
{[%clk 0:02:52.5]} 14. Be3 {[%clk 0:02:53.5]} 14... Bxe3 {[%clk 0:02:52.6]} 15.
fxe3 {[%clk 0:02:52.7]} 15... Bd7 {[%clk 0:02:54.5]} 16. e4 {[%clk 0:02:52.4]}
16... Bh3 {[%clk 0:02:55.1]} 17. Rxf6 {[%clk 0:02:49.6]} 17... Rd7 {[%clk
0:02:53]} 18. Nd5 {[%clk 0:02:45.2]} 18... Be6 {[%clk 0:02:52.3]} 19. Nc3 {[%clk
0:02:30]} 19... Rg6 {[%clk 0:02:45.5]} 20. Rxg6 {[%clk 0:02:29]} 20... fxg6
{[%clk 0:02:44.9]} 21. Rf1 {[%clk 0:02:24.3]} 21... Bh3 {[%clk 0:02:42.4]} 22.
Rf8+ {[%clk 0:02:23.1]} 22... Rd8 {[%clk 0:02:43]} 23. Rf7 {[%clk 0:02:17.5]}
23... Rd7 {[%clk 0:02:43.5]} 24. Rxd7 {[%clk 0:02:16.4]} 24... Bxd7 {[%clk
0:02:45.4]} 25. Nd5 {[%clk 0:02:16.9]} 25... Kd8 {[%clk 0:02:44.1]} 26. Nf6
{[%clk 0:02:17.8]} 26... h5 {[%clk 0:02:41.8]} 27. g4 {[%clk 0:02:16.6]} 27...
hxg4 {[%clk 0:02:39.6]} 28. Nxd7 {[%clk 0:02:13.4]} 28... Kxd7 {[%clk
0:02:40.2]} 29. Kg2 {[%clk 0:02:14.9]} 29... Kc6 {[%clk 0:02:35]} 30. Kg3 {[%clk
0:02:15.4]} 30... Kc5 {[%clk 0:02:36.9]} 31. Kxg4 {[%clk 0:02:15.9]} 31... Kd4
{[%clk 0:02:38.8]} 32. Kf3 {[%clk 0:02:14.8]} 32... c5 {[%clk 0:02:38.1]} 33.
Ke2 {[%clk 0:02:13.7]} 33... b5 {[%clk 0:02:39]} 34. c3# {[%clk 0:02:14.5]} 1

[Event "Open Nuevo Centro. Jornada 1"]
[Site "Chess.com"]
[Date "2020.06.19"]
[Round "5"]
[White "Juan Alos, Sergio"]
[Black "Casado Andreu, David"]
[Result "0-1"]
[WhiteElo "1227"]
[BlackElo "1571"]
[TimeControl "180+2"]
[EndTime "11:22:52 PDT"]
[Termination "Victoria de dave6635 por abandono"]

1. d4 {[%clk 0:03:01.9]} 1... Nf6 {[%clk 0:02:59.9]} 2. Nf3 {[%clk 0:02:58.4]}
2... d5 {[%clk 0:02:58.2]} 3. e3 {[%clk 0:02:58.9]} 3... Bf5 {[%clk 0:02:59.5]}
4. Bd3 {[%clk 0:02:59.6]} 4... Bg6 {[%clk 0:03:00.5]} 5. c3 {[%clk 0:02:58.1]}
5... e6 {[%clk 0:03:01.5]} 6. Bxg6 {[%clk 0:02:57.4]} 6... hxg6 {[%clk
0:03:01.2]} 7. Nbd2 {[%clk 0:02:59.1]} 7... Bd6 {[%clk 0:03:02.1]} 8. Qe2 {[%clk
0:02:58.1]} 8... Nbd7 {[%clk 0:03:01.3]} 9. e4 {[%clk 0:02:59]} 9... dxe4 {[%clk
0:02:57.7]} 10. Nxe4 {[%clk 0:03:00.2]} 10... Nxe4 {[%clk 0:02:53.2]} 11. Qxe4
{[%clk 0:03:01.2]} 11... Nf6 {[%clk 0:02:55.1]} 12. Qxb7 {[%clk 0:02:58.9]}
12... O-O {[%clk 0:02:40.3]} 13. Bg5 {[%clk 0:02:53.7]} 13... Be7 {[%clk
0:02:39.1]} 14. Bxf6 {[%clk 0:02:50.4]} 14... Bxf6 {[%clk 0:02:39.4]} 15. O-O
{[%clk 0:02:50.2]} 15... Kh7 {[%clk 0:02:32.7]} 16. Qe4 {[%clk 0:02:44.6]} 16...
Rb8 {[%clk 0:02:31.7]} 17. Rab1 {[%clk 0:02:40.7]} 17... Rh8 {[%clk 0:02:31.4]}
18. Ne5 {[%clk 0:02:37.3]} 18... Bxe5 {[%clk 0:02:29.5]} 19. Qxe5 {[%clk
0:02:38.5]} 19... Kg8 {[%clk 0:02:29.5]} 20. Rfe1 {[%clk 0:02:27.3]} 20... Rh5
{[%clk 0:02:29.6]} 21. Re3 {[%clk 0:02:27]} 21... Rxe5 {[%clk 0:02:29.1]} 22.
Rxe5 {[%clk 0:02:27.5]} 22... Rb6 {[%clk 0:02:20.2]} 23. Re4 {[%clk 0:02:20.4]}
23... Qg5 {[%clk 0:02:06.5]} 24. g3 {[%clk 0:02:17.5]} 24... Qd2 {[%clk
0:02:03]} 25. Kf1 {[%clk 0:02:13.4]} 25... Rxb2 {[%clk 0:02:02.6]} 26. Rxb2
{[%clk 0:02:13.4]} 26... Qxb2 {[%clk 0:02:04.5]} 27. Re2 {[%clk 0:02:14.3]}
27... Qxc3 {[%clk 0:02:03.9]} 0